[Event "93rd German Championship 2022"]
[Site "Magdeburg"]
[Date "2022.08.17"]
[Round "5.4"]
[White "Vogel, Roven"]
[Black "Carlstedt, Jonathan"]
[Result "1-0"]
[ECO "D40"]
[WhiteElo "2465"]
[BlackElo "2446"]
[Annotator "TA"]
[PlyCount "83"]
[EventDate "2022.08.14"]
[EventType "swiss"]
[EventCountry "GER"]
[SourceTitle "playchess.com"]
[Source "ChessBase"]
[SourceQuality "1"]
[TimeControl "40/5400+30:1800+30"]

{[%evp 11,83,15,19,-12,-23,-10,0,4,0,0,31,0,14,0,6,0,0,3,8,0,0,0,54,21,66,64,62,64,66,64,68,68,92,66,75,67,69,70,65,60,66,64,84,56,82,70,66,0,0,-187,-192,-552,-537,-495,-109,-575,-557,-588,-158,-136,0,0,0,0,0,0,0,0,0,0,73,54,1186,1057]} 1. Nf3 {[%emt 0:00:06]} d5 {[%emt 0:00:20]} 2. d4 {[%emt 0:00:17]} Nf6 {[%emt 0:00:13]} 3. c4 {[%emt 0:00:12]} e6 {[%emt 0:00:09]} 4. Nc3 {[%emt 0:00:45]} c5 {[%emt 0:00:17]} 5. e3 {[%emt 0:02:56]} a6 {[%emt 0:02:20]} 6. cxd5 {[%emt 0:06:23]} exd5 {[%emt 0:00:27]} 7. Ne5 {[%emt 0:00:30] Recently 7.g3 got a lot of attention. D40: Queen's Gambit Declined: Semi-Tarrasch with 5 e3.} Bd6 {[%emt 0:11:07] [#]} 8. g3 $146 {[%emt 0:07:25]} ({Predecessor:} 8. Be2 O-O 9. O-O Re8 10. f4 Nc6 11. Bf3 Be6 12. Kh1 cxd4 13. exd4 Qb6 14. f5 Bxf5 15. Nxd5 Nxd5 16. Bxd5 {½-½ (40) Fressinet,L (2700)-Wojtaszek,R (2727) Huaian 2016}) 8... O-O {[%emt 0:21:58]} 9. Bg2 $1 {[%emt 0:01:15] The position is equal.} Be6 {[%emt 0:00:14]} 10. O-O {[%emt 0:00:33]} Qc7 {[%emt 0:01:07]} 11. Nf3 {[%emt 0:08:28]} (11. f4 $5 {[%cal Rf4f5]}) 11... Nc6 {[%emt 0:09:12]} 12. dxc5 {[%emt 0:08:44]} Bxc5 {[%emt 0:00:14]} 13. b3 {[%emt 0:01:31]} Rad8 {[%emt 0:06:25]} 14. Ne2 {[%emt 0:00:38] Against d4} Bg4 {[%emt 0:01:20]} 15. Bb2 {[%emt 0:03:33] Prevents d4.} Ne4 {[%emt 0:00:48]} 16. Nf4 {[%emt 0:04:09]} Ba7 {[%emt 0:13:18]} (16... Ng5 $11) 17. h3 {[%emt 0:05:30]} (17. Nxd5 $2 Qa5 18. Qd3 Qxd5 $19) 17... Be6 {[%emt 0:04:23]} 18. Nd4 {[%emt 0:01:37]} Nxd4 {[%emt 0:04:37]} 19. Bxd4 {[%emt 0:00:11]} Nc3 {[%emt 0:00:11]} 20. Qd3 {[%emt 0:07:05]} Bxd4 {[%emt 0:00:22]} 21. exd4 {[%emt 0:01:16] And now Rfc1 would win.} Nb5 {[%emt 0:01:03]} 22. Rfe1 {[%emt 0:08:24]} Qb6 {[%emt 0:01:02]} 23. Rad1 {[%emt 0:00:19]} Rd6 {[%emt 0:00:46]} 24. Re5 {[%emt 0:00:38][%cal Rg2d5]} Rfd8 {[%emt 0:06:53]} 25. Qe3 {[%emt 0:02:12][%cal Of4d5] aiming for Nxd5! White is more active.} Nc7 {[%emt 0:00:36]} 26. Re1 {[%emt 0:04:24]} h6 {[%emt 0:00:17]} 27. Bf1 {[%emt 0:00:47]} Qa5 {[%emt 0:02:01]} 28. Bd3 {[%emt 0:02:35]} (28. Nxe6 Rxe6 29. Re2 Qb6 $11) 28... Re8 {[%emt 0:01:23]} 29. Nh5 {[%emt 0:03:55]} (29. Rc1 $14) 29... f6 $1 $11 {[%emt 0:07:12]} 30. b4 $2 {[%emt 0:10:10]} (30. Nxf6+ $1 $11 {and White is okay.} gxf6 31. Qxh6 fxe5 32. Qg6+ Kf8 33. Qf6+ Kg8 34. Rxe5) 30... Qb6 $19 {[%emt 0:01:07]} (30... Qxa2 31. Bb1 Qa4 32. Qd3 $11) (30... Qxb4 31. Rb1 Qa5 32. Nxg7 $1 (32. Rxb7 $2 fxe5 33. Qxe5 Rd7 $19) 32... fxe5 33. dxe5 $14 (33. Nxe8 Nxe8 34. Bg6 Rb6 $11)) 31. Nxf6+ {[%emt 0:07:11]} (31. Nxg7 Kxg7 32. Rh5) 31... gxf6 {[%emt 0:00:02]} 32. Bh7+ {[%emt 0:00:06]} Kf7 $2 {[%emt 0:03:29]} (32... Kxh7 $19 {and Black stays clearly on top.} 33. Rh5 Kg8 34. Qxh6 Kf7 35. Qh7+ Kf8) 33. Qxh6 $2 {[%emt 0:00:06][%mdl 8192]} fxe5 {[%emt 0:00:19]} 34. dxe5 {[%emt 0:01:14][%csl Ge5][%cal Rh6f6]} Bf5 $2 {[%emt 0:01:01]} 35. Qf4 $17 {[%emt 0:00:01] [#]} Kg7 {[%emt 0:01:02]} 36. Bxf5 $11 {[%emt 0:00:23] Dancing on a razor blade.} Rh6 {[%emt 0:00:19] Threatens to win with ...Ne6.} 37. Qg5+ {[%emt 0:01:24]} ({Avoid the trap} 37. Bd7 $2 Ne6 38. Qd2 Re7 39. Bxe6 Qxe6 $19) 37... Rg6 {[%emt 0:00:02]} 38. Bxg6 {[%emt 0:00:07]} Qxg6 {[%emt 0:00:07]} 39. Qd2 {[%emt 0:01:08]} Rd8 {[%emt 0:00:54]} 40. e6 {[%emt 0:00:26] Strongly threatening Qc3+.} Kg8 {[%emt 0:01:21]} (40... Nxe6 $2 {[#]} 41. Rxe6 $1 {[%mdl 512]} Qxe6 42. Qg5+ Kh7 43. Qxd8 $18) (40... Qf6 $11 {remains equal.}) 41. Qf4 {[%emt 0:03:30][%mdl 1024] White has strong compensation.} Ne8 {[%emt 0:04:44][%mdl 8192] [#]} (41... Nxe6 $14 42. Rxe6 Qxe6) 42. Qf8+ $3 {[%emt 0:00:16][%mdl 576] Decoy. What a bad dream for Black.  Weighted Error Value: White=0.38/Black=0.55} 1-0

[Event "93rd German Championship 2022"]
[Site "Magdeburg"]
[Date "2022.08.17"]
[Round "5.5"]
[White "Becker, Michael"]
[Black "Becker, Stefan"]
[Result "1/2-1/2"]
[ECO "B42"]
[WhiteElo "2270"]
[BlackElo "2101"]
[Annotator "NA RC"]
[PlyCount "108"]
[EventDate "2022.08.14"]
[EventType "swiss"]
[EventCountry "GER"]
[SourceTitle "playchess.com"]
[Source "ChessBase"]
[SourceQuality "1"]
[TimeControl "40/5400+30:1800+30"]

1. e4 {[%emt 0:00:05]} c5 {[%emt 0:00:11]} 2. Nf3 {[%emt 0:00:15]} e6 {[%emt 0:00:21]} 3. d4 {[%emt 0:00:11]} cxd4 {[%emt 0:00:08]} 4. Nxd4 {[%emt 0:00:07]} a6 {[%emt 0:00:06]} 5. Bd3 {[%emt 0:00:22]} Nf6 {[%emt 0:00:13]} 6. Qe2 {[%emt 0:00:12]} d6 {[%emt 0:00:16]} 7. O-O {[%emt 0:00:58]} Qc7 {[%emt 0:00:22]} 8. c4 {[%emt 0:00:33]} g6 {[%emt 0:00:10]} 9. Nc3 {[%emt 0:00:59]} Bg7 {[%emt 0:00:10]} 10. Be3 {[%emt 0:00:35]} O-O {[%emt 0:00:32]} 11. f4 {[%emt 0:00:25]} Nc6 {[%emt 0:04:07]} 12. Nxc6 {[%emt 0:01:30]} bxc6 {[%emt 0:00:25]} 13. c5 {[%emt 0:01:00]} d5 {[%emt 0:11:16]} 14. e5 {[%emt 0:00:55]} Nd7 {[%emt 0:00:09]} 15. Na4 {[%emt 0:00:25]} f6 {[%emt 0:01:01]} 16. Nb6 {[%emt 0:02:49]} Ra7 {[%emt 0:01:08]} 17. Bd4 {[%emt 0:01:33]} fxe5 {[%emt 0:18:07]} 18. Nxd7 {[%emt 0:12:00]} Bxd7 {[%emt 0:02:09]} 19. Bxe5 {[%emt 0:02:01]} Bxe5 {[%emt 0:01:08]} 20. fxe5 {[%emt 0:00:10]} Rxf1+ {[%emt 0:02:10]} 21. Rxf1 {[%emt 0:00:12]} Be8 {[%emt 0:04:55]} 22. Qf2 {[%emt 0:13:25]} Qe7 {[%emt 0:02:37]} 23. Qd4 {[%emt 0:01:29]} a5 {[%emt 0:02:19]} 24. b3 {[%emt 0:01:01]} Qg5 {[%emt 0:04:29]} 25. Qf4 {[%emt 0:03:41]} Qe7 {[%emt 0:06:14]} 26. Qc1 {[%emt 0:01:38]} Qb7 {[%emt 0:09:43]} 27. Rf4 {[%emt 0:02:02]} Qg7 {[%emt 0:04:12]} 28. Rf6 {[%emt 0:01:25]} Rf7 {[%emt 0:00:27]} 29. Rxf7 {[%emt 0:08:20]} Bxf7 {[%emt 0:01:20]} 30. Qe3 {[%emt 0:00:51]} g5 {[%emt 0:06:05]} 31. Ba6 {[%emt 0:06:26]} h6 {[%emt 0:02:00]} 32. h3 {[%emt 0:03:49]} Bg6 {[%emt 0:01:25]} 33. Bc8 {[%emt 0:00:37]} Qe7 {[%emt 0:08:12]} 34. Qc3 {[%emt 0:01:07]} Qe8 {[%emt 0:00:54]} 35. Ba6 {[%emt 0:01:15]} Qd8 {[%emt 0:01:54]} 36. Qd4 {[%emt 0:02:10]} Be4 {[%emt 0:00:43]} 37. Bd3 {[%emt 0:07:17]} Bxd3 {[%emt 0:00:25]} 38. Qxd3 {[%emt 0:00:04]} Kg7 {[%emt 0:00:22]} 39. Qd4 {[%emt 0:04:35]} Qf8 {[%emt 0:03:10]} 40. a3 {[%emt 0:04:21]} Qf5 {[%emt 0:03:09]} 41. b4 {[%emt 0:31:09]} axb4 {[%emt 0:31:12]} 42. axb4 {[%emt 0:00:11]} Kf7 {[%emt 0:00:00]} 43. Kh2 {[%emt 0:00:00]} Ke7 {[%emt 0:00:00]} 44. Kh1 {[%emt 0:00:00]} Qf1+ {[%emt 0:00:00]} 45. Kh2 {[%emt 0:00:00]} h5 {[%emt 0:00:00]} 46. Qe3 {[%emt 0:00:00]} Qf5 {[%emt 0:00:00]} 47. Qd4 {[%emt 0:00:00]} Kd7 {[%emt 0:00:00]} 48. Kg1 {[%emt 0:00:00]} Kc7 {[%emt 0:00:00]} 49. Qa1 {[%emt 0:00:00]} Qf4 {[%emt 0:00:00]} 50. Qa7+ {[%emt 0:00:00]} Kd8 {[%emt 0:00:00]} 51. Qb8+ {[%emt 0:00:00]} Ke7 {[%emt 0:00:00]} 52. Qd6+ {[%emt 0:00:00]} Kf7 {[%emt 0:00:00]} 53. Qd7+ {[%emt 0:00:27]} Kf8 {[%emt 0:00:00]} 54. Qxe6 {[%emt 0:02:29]} Qc1+ 1/2-1/2

[Event "93rd German Championship 2022"]
[Site "Magdeburg"]
[Date "2022.08.17"]
[Round "5.6"]
[White "Roseneck, Jonas"]
[Black "Langheinrich, Ferenc"]
[Result "1-0"]
[ECO "E73"]
[WhiteElo "2384"]
[BlackElo "2357"]
[Annotator "TA"]
[PlyCount "103"]
[EventDate "2022.08.14"]
[EventType "swiss"]
[EventCountry "GER"]
[SourceTitle "playchess.com"]
[Source "ChessBase"]
[SourceQuality "1"]
[TimeControl "40/5400+30:1800+30"]

{[%evp 13,103,36,33,16,21,12,43,39,57,61,77,68,63,47,58,66,83,56,60,56,71,37,47,39,56,39,45,29,29,34,49,15,54,14,85,81,91,91,89,82,82,67,62,55,87,86,183,186,186,179,177,177,179,179,189,135,183,100,86,79,173,157,144,-8,186,186,311,285,431,443,433,403,567,541,1166,1136,1151,1154,2682,1715,29987,29988,29988,29989,29989,29990,29990,29991,29991,29990,29995,29996]} 1. d4 {[%emt 0:00:03]} Nf6 {[%emt 0:00:42]} 2. c4 {[%emt 0:00:02]} g6 {[%emt 0:01:00]} 3. Nc3 {[%emt 0:00:04]} Bg7 {[%emt 0:00:09]} 4. e4 {[%emt 0:00:04]} d6 {[%emt 0:00:04]} 5. Be2 {[%emt 0:00:04]} O-O {[%emt 0:00:08]} 6. Bg5 {[%emt 0:00:03]} c5 {[%emt 0:00:40]} 7. d5 {[%emt 0:00:30]} e6 {[%emt 0:00:06]} 8. Qc1 {[%emt 0:01:23] E75: King's Indian: Averbakh Variation: 6...c5 7 d5 e6.} exd5 {[%emt 0:00:12]} 9. exd5 {[%emt 0:00:21]} Qb6 {[%emt 0:04:30]} 10. Nf3 {[%emt 0:02:12] White is slightly better.} Bf5 {[%emt 0:00:56]} 11. Nh4 {[%emt 0:01:22] [#]} Bc8 $146 {[%emt 0:12:45]} ({Predecessor:} 11... Bd7 12. O-O Re8 13. Qf4 Rxe2 14. Nxe2 Ng4 15. Qd2 h6 16. Be3 Qxb2 17. Rab1 Qf6 {1-0 (41) Del Rio de Angelis,S (2442)-Cabezas Ayala,I (2296) Pontevedra 2022}) 12. O-O {[%emt 0:04:21]} Re8 {[%emt 0:07:38]} 13. Qc2 {[%emt 0:10:29] Against Ne4} Nbd7 {[%emt 0:06:54]} 14. h3 {[%emt 0:03:30]} Nf8 {[%emt 0:01:42]} 15. Rae1 {[%emt 0:13:52]} Bd7 {[%emt 0:02:31]} 16. Bd3 {[%emt 0:06:03]} a6 {[%emt 0:10:05]} 17. a4 {[%emt 0:05:48]} Rxe1 {[%emt 0:06:19]} 18. Rxe1 {[%emt 0:00:02]} Re8 {[%emt 0:00:08]} 19. Rf1 {[%emt 0:05:15]} Bc8 {[%emt 0:03:27]} 20. Bd2 {[%emt 0:03:05]} Qd8 {[%emt 0:06:04][%cal Of6d5]} 21. Nf3 {[%emt 0:01:50]} N8d7 {[%emt 0:04:16]} 22. g4 {[%emt 0:10:13]} Nf8 {[%emt 0:04:04][%cal Of6g4]} 23. Nh2 {[%emt 0:03:03]} N6d7 {[%emt 0:02:05]} (23... h5 $1 $11 {keeps the balance.}) 24. f4 $1 $16 {[%emt 0:02:16]} Qh4 {[%emt 0:02:31]} 25. Kg2 {[%emt 0:02:56]} Qd8 {[%emt 0:04:21]} 26. Nf3 {[%emt 0:02:22]} Nf6 {[%emt 0:00:47]} 27. Ne2 {[%emt 0:02:50] White is more active.} b5 {[%emt 0:03:24]} 28. b3 {[%emt 0:02:19]} bxc4 {[%emt 0:01:14]} 29. bxc4 {[%emt 0:01:12]} Bxg4 {[%emt 0:00:45]} 30. hxg4 $18 {[%emt 0:00:26]} Nxg4 {[%emt 0:00:06]} 31. Ng3 {[%emt 0:03:46]} Nd7 {[%emt 0:00:33]} 32. Qc1 {[%emt 0:03:12]} Qc7 {[%emt 0:02:18]} 33. Re1 {[%emt 0:02:01]} Rb8 {[%emt 0:00:03]} 34. Bc3 {[%emt 0:00:27]} (34. Re2 $18) 34... Ndf6 {[%emt 0:03:38]} (34... Bxc3 $16 35. Qxc3 Qd8) 35. Nh2 {[%emt 0:01:00]} (35. Bc2 $1 $18) 35... Nxh2 $16 {[%emt 0:04:09]} 36. Kxh2 {[%emt 0:00:09]} Qd8 {[%emt 0:00:39]} (36... Ng4+ $16 37. Kg2 Bxc3 38. Qxc3 Qd8) 37. Kg2 $1 $18 {[%emt 0:01:36]} Rb3 {[%emt 0:02:06][%cal Ob3c3] [#]} 38. Qc2 {[%emt 0:04:06] [#]} (38. f5 $1 $16) 38... Rb8 $2 {[%emt 0:03:25] This costs Black the game.} (38... Rxc3 $1 $11 {and Black is okay.} 39. Qxc3 Nxd5) 39. a5 {[%emt 0:03:56]} Qd7 {[%emt 0:00:08]} (39... Ng4 {might work better.}) 40. f5 {[%emt 0:00:55]} Ng4 {[%emt 0:02:16]} (40... Qc7 $142 41. Qc1 (41. fxg6 hxg6 42. Qd2 Qd8 $18) 41... Qd8) 41. Bxg7 {[%emt 0:31:10]} Kxg7 {[%emt 0:30:09]} 42. Qc3+ {[%emt 0:00:00]} f6 {[%emt 0:00:00]} (42... Kg8 {is a better defense.} 43. Re4 Ne5 44. Rxe5 dxe5 45. Qxe5 (45. fxg6 fxg6 46. Qxe5 Re8 $16) 45... Re8) 43. Re6 {[%emt 0:00:00]} Qa4 {[%emt 0:00:00]} 44. fxg6 {[%emt 0:00:00]} hxg6 {[%emt 0:00:00]} 45. Bc2 {[%emt 0:00:00]} Qa2 {[%emt 0:00:00]} 46. Qd3 {[%emt 0:00:00]} Kf8 {[%emt 0:00:00]} 47. Qxg6 {[%emt 0:00:00] White mates.} Qxc4 {[%emt 0:00:00]} 48. Rxf6+ {[%emt 0:00:00]} Nxf6 {[%emt 0:00:00]} 49. Qxf6+ {[%emt 0:00:00]} Kg8 {[%emt 0:00:00]} 50. Qg6+ {[%emt 0:00:00]} Kf8 {[%emt 0:00:00]} 51. Qxd6+ {[%emt 0:00:00]} Kf7 {[%emt 0:00:00]} 52. Bg6+ {[%emt 0:00:00] Weighted Error Value: White=0.12 (very precise) /Black=0.41} 1-0

[Event "93rd German Championship 2022"]
[Site "Magdeburg"]
[Date "2022.08.17"]
[Round "5.7"]
[White "Dahl, Christoph"]
[Black "Kunin, Vitaly"]
[Result "1-0"]
[ECO "B38"]
[WhiteElo "2355"]
[BlackElo "2528"]
[Annotator "TA"]
[PlyCount "135"]
[EventDate "2022.08.14"]
[EventType "swiss"]
[EventCountry "GER"]
[SourceTitle "playchess.com"]
[Source "ChessBase"]
[SourceQuality "1"]
[TimeControl "40/5400+30:1800+30"]

{[%evp 13,135,25,65,55,62,74,78,71,81,0,7,0,77,77,72,27,37,42,68,77,171,172,152,152,145,148,208,212,210,180,194,213,202,172,194,186,191,154,162,170,180,189,176,183,160,122,128,128,144,127,125,81,192,200,200,200,192,191,166,73,73,73,119,81,112,112,307,307,307,307,307,307,307,307,307,307,307,307,307,307,307,300,300,319,325,300,310,310,321,307,303,296,300,300,300,293,448,300,292,285,316,274,12850,27994,27994,27994,27995,27995,27996,27995,27995,27996,27997,27997,27998,27999,27999,27997,27997,27998,27998,27999,27999,27999]} 1. e4 {[%emt 0:00:05]} c5 {[%emt 0:01:02]} 2. Nf3 {[%emt 0:00:43]} g6 {[%emt 0:00:42]} 3. d4 {[%emt 0:01:09]} cxd4 {[%emt 0:00:11]} 4. Nxd4 {[%emt 0:00:41]} Nc6 {[%emt 0:00:22]} 5. c4 {[%emt 0:01:10]} Bg7 {[%emt 0:00:38]} 6. Be3 {[%emt 0:00:53]} d6 {[%emt 0:00:30] Recently 6...Qb6 got a lot of attention.} 7. Nc3 {[%emt 0:01:23]} Nh6 {[%emt 0:00:42]} 8. f3 {[%emt 0:05:56] Prevents Ng4. B38: Sicilian: Maroczy Bind with 5...Bg7 and 7...0-0.} f5 {[%emt 0:00:31]} 9. Qd2 {[%emt 0:06:11] Nxc6 is the strong threat.} Nf7 {[%emt 0:08:10]} 10. exf5 {[%emt 0:03:52] White is better.} gxf5 {[%emt 0:01:32][%cal Bg6f5,Bf5f4][%mdl 32]} 11. c5 {[%emt 0:16:07] [#]} (11. O-O-O $16) 11... f4 $146 {[%emt 0:23:05]} ({Predecessor:} 11... dxc5 12. Nxc6 Qxd2+ 13. Kxd2 bxc6 14. Bxc5 Nd6 15. Kc2 Nb7 16. Bf2 Bf6 17. Re1 O-O {1-0 (40) Nikcevic,N (2488)-Popov,L (2354) Herceg Novi 2000}) 12. Bf2 {[%emt 0:01:43]} d5 {[%emt 0:00:15]} (12... dxc5 $11 13. Nxc6 Qxd2+ 14. Kxd2 bxc6) 13. Bb5 $16 {[%emt 0:03:57]} (13. Qxf4 Nxd4 14. Bxd4 e5 $15) 13... Bd7 {[%emt 0:10:14]} 14. O-O {[%emt 0:07:00]} (14. Nxd5 Nxd4 15. Bxd4 Bxd4 16. Bxd7+ Qxd7 $17) (14. Qxf4 Bxd4 15. Bxd4 e5 16. Bxe5 Ncxe5 $17) 14... O-O {[%emt 0:02:23]} 15. Nde2 $36 {[%emt 0:04:00][%mdl 2048] White has good play.} (15. Qxf4 $2 Nxd4 16. Bxd7 (16. Bxd4 $2 e5 $19) 16... Qxd7 $19) 15... e6 {[%emt 0:03:37]} 16. Qxf4 {[%emt 0:11:05]} (16. Nxf4 Bh6 $11) 16... Nd6 {[%emt 0:05:30]} 17. Qxd6 $18 {[%emt 0:02:26]} Be5 {[%emt 0:02:46] [#] Prevents Nd4.} 18. Bxc6 $1 {[%emt 0:00:06]} Bxd6 {[%emt 0:00:12]} 19. Bxd7 {[%emt 0:00:09]} Qxd7 {[%emt 0:02:29]} (19... Bxh2+ $16 {is a better defense.} 20. Kxh2 Qxd7) 20. cxd6 {[%emt 0:00:08]} Qxd6 {[%emt 0:00:08]} 21. f4 {[%emt 0:00:47]} h6 {[%emt 0:05:40]} 22. Bd4 {[%emt 0:06:06]} Kh7 {[%emt 0:00:08]} 23. Rac1 {[%emt 0:03:29]} Rac8 {[%emt 0:00:42]} 24. a4 {[%emt 0:05:50]} ({Not} 24. Bxa7 b6 $11) 24... a6 {[%emt 0:00:15]} 25. Rf3 {[%emt 0:01:01]} b5 {[%emt 0:02:16]} 26. axb5 {[%emt 0:00:35]} axb5 {[%emt 0:00:08]} 27. Ra1 {[%emt 0:01:06]} ({Don't go for} 27. Nxb5 $2 Rxc1+ 28. Nxc1 Qb4 $19) 27... Ra8 {[%emt 0:00:17]} 28. Rxa8 {[%emt 0:00:54] Chess con chili.} Rxa8 {[%emt 0:00:11]} 29. Nxb5 {[%emt 0:01:08] White is more active.} Qb4 {[%emt 0:00:47] And now ...Qe1+ would win.} 30. Nbc3 $1 {[%emt 0:00:15]} Qxb2 {[%emt 0:00:59]} 31. Kf2 {[%emt 0:02:04][%cal Oc3d5] aiming for Nxd5!} Qc2 {[%emt 0:16:15]} 32. Re3 {[%emt 0:00:37]} Qg6 {[%emt 0:05:04]} (32... Rf8 $16) 33. Rg3 {[%emt 0:00:19]} Qf7 {[%emt 0:00:08]} 34. Rg7+ {[%emt 0:04:18]} Qxg7 {[%emt 0:00:10]} 35. Bxg7 {[%emt 0:00:05]} Kxg7 {[%emt 0:00:10]} 36. f5 {[%emt 0:00:47]} (36. g4 $18) 36... exf5 $16 {[%emt 0:04:19]} 37. Nxd5 {[%emt 0:00:07]} Kg6 {[%emt 0:00:42]} (37... Ra5 $142) 38. Nd4 {[%emt 0:04:28] Black must now prevent Kf3.} Kg5 {[%emt 0:03:10]} 39. Kf3 {[%emt 0:03:04] Hoping for Ne3.} Ra6 $2 {[%emt 0:01:25] A mistake that costs the game.} (39... Ra4 $16 {was worth a try.}) 40. Ne3 $18 {[%emt 0:02:57]} f4 {[%emt 0:00:32]} 41. Nd5 {[%emt 0:30:32]} Ra3+ {[%emt 0:04:21]} 42. Ke4 {[%emt 0:00:00]} Ra4 {[%emt 0:00:07]} 43. Ke5 {[%emt 0:00:00]} ({Don't do} 43. Nxf4 Rc4 44. Ke5 Ra4 $18) 43... Ra5 {[%emt 0:06:06]} 44. Ne6+ {[%emt 0:00:00]} Kg6 {[%emt 0:00:06]} 45. Nexf4+ {[%emt 0:00:00]} Kg5 {[%emt 0:00:55]} 46. Ke4 {[%emt 0:00:00]} Ra4+ {[%emt 0:00:25]} 47. Kf3 {[%emt 0:00:00]} Ra3+ {[%emt 0:00:31] [#]} 48. Ne3 $1 {[%emt 0:00:00]} Ra2 {[%emt 0:00:33]} 49. Ne2 {[%emt 0:00:00]} Ra8 {[%emt 0:00:12]} 50. g3 {[%emt 0:00:00]} Ra4 {[%emt 0:02:31]} 51. Nf4 {[%emt 0:00:00]} Ra3 {[%emt 0:00:09]} 52. Ke4 {[%emt 0:00:00]} Ra4+ {[%emt 0:00:33]} 53. Ke5 {[%emt 0:00:00][%csl Gg3][%cal Rh2h4]} Ra5+ {[%emt 0:00:05]} 54. Nfd5 {[%emt 0:00:00]} Ra4 {[%emt 0:02:14]} (54... Kh5 $142 55. h4 Kg6) 55. Nf6 {[%emt 0:01:39]} Ra5+ {[%emt 0:02:48] [#]} 56. Ned5 $1 {[%emt 0:00:13]} Ra4 {[%emt 0:00:11]} 57. h4+ {[%emt 0:02:01]} Rxh4 $2 {[%emt 0:01:30]} (57... Kg6 58. h5+ Kf7) 58. gxh4+ {[%emt 0:00:05]} Kxh4 {[%emt 0:00:09] White mates.} 59. Kf4 {[%emt 0:00:07]} Kh3 {[%emt 0:00:44]} 60. Ne3 {[%emt 0:01:11]} Kh4 {[%emt 0:00:15]} 61. Ng2+ {[%emt 0:01:13]} Kh3 {[%emt 0:00:06]} 62. Kf3 {[%emt 0:00:04]} h5 {[%emt 0:00:11]} 63. Kf2 {[%emt 0:00:30]} Kh2 {[%emt 0:00:40]} 64. Nh4 {[%emt 0:00:15]} Kh3 {[%emt 0:00:14]} 65. Nf3 {[%emt 0:00:06]} h4 {[%emt 0:00:18]} 66. Ng5+ {[%emt 0:00:06]} Kh2 {[%emt 0:00:08]} 67. Ng4+ {[%emt 0:00:06]} Kh1 {[%emt 0:00:06]} 68. Ne4 {[%emt 0:00:07] Weighted Error Value: White=0.12 (very precise) /Black=0.22 (precise)} 1-0